bitfinex-derivatives/quotes_SOLF0:USTF0_20241026
["timestamp","ask_amount","ask_price","bid_price","bid_amount"]
[1729956539574,2.9652,168.82,168.77,4.2253]
[1729956539777,4.84,168.88,168.75,6.1187]
[1729956539976,22.65,168.88,168.75,1.2787]
[1729956540280,2.9656,168.8,168.75,1.2787]
[1729956540481,4.84,168.82,168.75,1.2787]
[1729956540669,4.84,168.83,168.75,1.2787]
[1729956541076,2.9652,168.82,168.77,2.9658]
[1729956542779,4.84,168.86,168.76,4.84]
[1729956542978,4.84,168.88,168.76,4.84]
[1729956543376,2.9645,168.86,168.81,2.9653]
[1729956543882,2.9645,168.86,168.76,4.84]
[1729956544080,2.9645,168.86,168.82,2.965]
[1729956544487,2.9643,168.87,168.82,2.965]
[1729956545071,2.9643,168.87,168.82,4.1542]
[1729956548978,4.84,168.9,168.82,1.1892]
[1729956549285,2.9639,168.89,168.85,2.9645]
[1729956550083,2.9639,168.89,168.84,2.9647]
[1729956550282,2.964,168.88,168.84,2.9647]
[1729956554090,252.04266305,168.92,168.82,1.1892]
[1729956554291,252.04266305,168.92,168.81,1.2357]
[1729956554985,252.04266305,168.92,168.78,2.9657]
[1729956555188,252.04266305,168.92,168.72,2.5038]
[1729956555189,252.04266305,168.92,168.76,4.84]
[1729956555394,2.9652,168.82,168.76,4.84]
[1729956555592,4.84,168.86,168.76,4.84]
[1729956555995,2.9651,168.83,168.78,2.9658]
[1729956556195,4.84,168.86,168.78,2.9658]
[1729956556594,4.84,168.86,168.73,6.1517]
[1729956557799,2.9649,168.83,168.78,2.9657]
[1729956558204,4.84,168.86,168.78,2.9657]
[1729956558504,4.84,168.86,168.79,2.9655]
[1729956559201,2.9648,168.84,168.79,2.9655]
[1729956559392,4.84,168.86,168.79,2.9655]
[1729956559997,2.9648,168.84,168.79,2.9655]
[1729956560606,2.9648,168.84,168.8,2.9654]
[1729956563007,2.965,168.83,168.78,2.9656]
[1729956563403,4.84,168.86,168.77,4.84]
[1729956563804,2.9648,168.84,168.77,4.84]
[1729956564501,4.84,168.86,168.77,4.84]
[1729956564698,2.9646,168.85,168.77,4.84]
[1729956564896,4.84,168.86,168.77,4.84]
[1729956565504,247.20266305,168.92,168.77,4.84]
[1729956565806,4.84,168.91,168.77,4.84]
[1729956566205,2.9642,168.87,168.84,2.9646]
[1729956569908,4.84,168.91,168.83,2.9649]
[1729956570102,2.9644,168.86,168.83,2.9649]
[1729956576015,2.9641,168.88,168.81,2.9652]
[1729956576306,4.84,168.87,168.79,1.219]
[1729956576513,2.9658,168.79,168.76,2.9661]
[1729956576705,4.84,168.86,168.74,4.84]
[1729956577105,4.84,168.86,168.75,2.9662]
[1729956577408,4.84,168.86,168.74,4.84]
[1729956577609,4.84,168.86,168.73,8.5979]
[1729956578205,2.9655,168.8,168.76,2.9661]
[1729956578713,4.84,168.82,168.73,8.5979]
[1729956579015,2.9658,168.78,168.75,2.9663]
[1729956587118,2.9658,168.78,168.73,8.5979]
[1729956587421,2.9658,168.78,168.74,2.9664]
[1729956588719,2.9658,168.78,168.75,2.9663]
[1729956588921,2.9656,168.8,168.73,4.84]
[1729956589226,4.84,168.82,168.73,4.84]
[1729956589427,2.9661,168.76,168.73,7.8066]
[1729956590019,2.9663,168.75,168.73,7.8066]
[1729956590415,4.84,168.82,168.73,7.8066]
[1729956590629,2.9662,168.76,168.73,2.9666]
[1729956593427,4.84,168.82,168.71,138.08728011]
[1729956593627,2.9657,168.79,168.75,2.9662]
[1729956593825,8.94615141,168.87,168.71,138.08728011]
[1729956594025,4.84,168.86,168.71,138.08728011]
[1729956594327,2.9661,168.77,168.73,2.9666]
[1729956595125,2.9662,168.76,168.72,2.9668]
[1729956596023,4.84,168.8,168.72,2.9668]
[1729956596229,2.9663,168.75,168.69,7.3261]
[1729956597228,2.9663,168.75,168.72,2.9667]
[1729956598531,4.84,168.8,168.69,7.3261]
[1729956598827,2.9663,168.75,168.72,2.9667]
[1729956600530,4.84,168.8,168.69,7.3261]
[1729956600835,2.9662,168.76,168.73,2.9666]
[1729956601329,2.966,168.77,168.72,2.9667]
[1729956601526,4.84,168.8,168.69,2.4861]
[1729956602033,4.84,168.8,168.68,2.9674]
[1729956602733,2.9661,168.77,168.68,2.9674]
[1729956602930,4.84,168.76,168.68,2.9674]
[1729956604233,2.9668,168.73,168.68,2.9674]
[1729956604932,2.9667,168.74,168.7,2.9671]
[1729956605134,4.84,168.77,168.65,4.84]
[1729956605432,4.84,168.78,168.65,4.84]
[1729956605628,4.84,168.8,168.65,4.84]
[1729956605933,2.9659,168.78,168.74,2.9665]
[1729956606436,2.9656,168.8,168.75,2.9662]
[1729956606640,4.84,168.81,168.75,2.9662]
[1729956607024,2.9656,168.79,168.75,2.9662]
[1729956607231,4.84,168.81,168.71,3.8326]
[1729956607727,2.9656,168.8,168.75,2.9662]
[1729956611134,57.64,168.87,168.71,3.8326]
[1729956611336,4.84,168.86,168.74,4.84]
[1729956611528,5.9259,168.95,168.74,4.84]
[1729956611730,4.84,168.91,168.74,4.84]
[1729956611925,4.84,168.91,168.81,2.9652]
[1729956611926,2.9645,168.86,168.81,2.9652]
[1729956612239,4.84,168.91,168.81,2.9652]
[1729956612428,2.9647,168.84,168.8,2.9654]
[1729956613029,2.9645,168.86,168.81,2.9651]
[1729956613228,4.84,168.91,168.79,3.7798]
[1729956614229,2.9642,168.87,168.83,2.9648]
[1729956614430,2.9642,168.87,168.79,3.7798]
[1729956615238,2.9642,168.87,168.82,2.965]
[1729956616337,4.84,168.91,168.79,3.7798]
[1729956616538,22.65,168.91,168.75,4.84]
[1729956616740,22.65,168.91,168.68,3.7874]
[1729956616942,22.65,168.91,168.72,2.9667]
[1729956617128,17.81,168.89,168.72,2.9667]
[1729956617534,2.9659,168.78,168.72,2.9667]
[1729956617834,2.9659,168.78,168.73,2.9666]
[1729956618838,2.966,168.77,168.72,2.9667]
[1729956619731,4.84,168.82,168.71,5.08679332]
[1729956619932,4.84,168.82,168.69,5.08800299]
[1729956620137,4.84,168.82,168.69,4.84]
[1729956620335,2.9668,168.73,168.68,6.7549]
[1729956620636,4.84,168.78,168.68,3.7874]
[1729956620840,4.84,168.79,168.68,3.7874]
[1729956621132,4.84,168.8,168.69,5.08789495]
[1729956621331,4.84,168.81,168.7,5.08789495]
[1729956621543,4.84,168.81,168.71,4.84]
[1729956621930,2.9661,168.77,168.72,2.9667]
[1729956622442,2.9663,168.75,168.71,7.807]
[1729956622638,4.84,168.81,168.71,4.84]
[1729956622835,4.84,168.81,168.68,7.3569]
[1729956623037,4.84,168.81,168.68,2.5169]
[1729956623431,4.84,168.81,168.68,1.2648]
[1729956623640,4.84,168.81,168.67,5.09336369]
[1729956623830,4.84,168.81,168.67,1.2901]
[1729956624033,4.84,168.81,168.67,2.4838]
[1729956624233,4.84,168.81,168.69,2.9673]
[1729956624234,2.9666,168.74,168.69,2.9673]
[1729956624835,2.9662,168.76,168.71,2.9669]
[1729956625644,2.9663,168.75,168.67,2.4838]
[1729956625945,4.84,168.77,168.68,8.05821503]
[1729956626144,4.84,168.77,168.67,2.4838]
[1729956627646,2.9665,168.74,168.68,2.9674]
[1729956629255,2.9665,168.74,168.69,2.9673]
[1729956629953,2.9667,168.73,168.69,2.9673]
[1729956631350,4.84,168.77,168.67,2.4838]
[1729956631649,4.84,168.77,168.67,1.2901]
[1729956632046,2.9676,168.68,168.63,2.9684]
[1729956632250,17.81,168.79,168.59,1.2475]
[1729956632251,4.84,168.72,168.61,4.84]
[1729956632551,4.84,168.72,168.62,5.09210687]
[1729956632750,2.9674,168.69,168.61,4.84]
[1729956632953,4.84,168.72,168.62,5.08980034]
[1729956633351,2.9674,168.69,168.65,2.968]
[1729956634458,2.9677,168.68,168.64,2.9683]
[1729956635849,2.9679,168.67,168.63,2.9684]
[1729956636048,4.84,168.72,168.63,2.9684]
[1729956636249,4.84,168.72,168.6,2.5751]
[1729956636456,4.84,168.72,168.55,2.96761852]
[1729956636457,2.9693,168.58,168.57,5.08849127]
[1729956636760,4.84,168.62,168.55,2.6327]
[1729956637060,4.84,168.61,168.55,2.6327]
[1729956637353,4.84,168.64,168.55,2.6327]
[1729956637555,4.84,168.63,168.55,2.6327]
[1729956637762,4.84,168.64,168.55,2.6327]
[1729956637957,4.84,168.67,168.55,2.6327]
[1729956638359,2.9684,168.63,168.59,2.969]
[1729956640269,247.54005185,168.68,168.6,2.9689]
[1729956640270,7.8083,168.64,168.6,2.9689]
[1729956641461,7.8083,168.64,168.55,2.6327]
[1729956641462,4.84,168.64,168.55,2.6327]
[1729956642364,4.84,168.64,168.48,4.84]
[1729956642667,2.9696,168.57,168.52,2.9703]
[1729956642963,7.8096,168.57,168.49,2.4176]
[1729956643160,7.8096,168.57,168.49,3.6684]
[1729956643360,4.84,168.57,168.49,3.6684]
[1729956643560,2.9697,168.56,168.52,2.9702]
[1729956644664,2.9699,168.55,168.52,2.9702]
[1729956645070,2.9699,168.55,168.49,3.6684]
[1729956645268,4.84,168.57,168.49,3.6684]
[1729956645469,7.8096,168.57,168.49,3.6684]
[1729956645771,2.9696,168.57,168.49,3.6684]
[1729956646261,247.54005185,168.68,168.49,3.6684]
[1729956646466,4.84,168.67,168.49,3.6684]
[1729956647165,2.9694,168.58,168.54,2.9699]
[1729956647469,4.84,168.6,168.49,3.6684]
[1729956647669,2.9691,168.6,168.56,2.9695]
[1729956648169,2.9691,168.6,168.56,2.9696]
[1729956648365,2.9694,168.58,168.49,3.6684]
[1729956648867,4.84,168.61,168.49,3.6684]
[1729956649063,2.9697,168.56,168.49,3.6684]
[1729956649368,4.84,168.57,168.51,2.9705]
[1729956649563,2.9698,168.56,168.49,3.6684]
[1729956649764,4.84,168.57,168.51,2.9704]
[1729956650477,4.84,168.57,168.5,2.9707]
[1729956650878,2.97,168.55,168.49,3.6684]
[1729956651268,2.97,168.55,168.51,2.9704]
[1729956651479,2.97,168.55,168.49,3.6684]
[1729956651677,4.84,168.62,168.49,3.6684]
[1729956652478,2.9693,168.59,168.55,2.9697]
[1729956652776,2.9693,168.59,168.51,4.84]
[1729956653676,247.54005185,168.68,168.51,4.84]
[1729956653980,4.84,168.67,168.51,4.84]
[1729956654690,2.969,168.6,168.51,4.84]
[1729956655870,2.9691,168.6,168.55,2.9697]
[1729956656178,80.35,168.59,168.31,8.62365712]
[1729956656386,4.84,168.58,168.42,2.5103]
[1729956656679,2.971,168.49,168.44,2.9717]
[1729956656988,7.811,168.49,168.44,2.9717]
[1729956657871,2.9711,168.48,168.43,2.9719]
[1729956658273,4.84,168.49,168.42,2.5103]
[1729956658870,2.9713,168.47,168.42,2.5103]
[1729956659078,7.8113,168.47,168.42,2.5103]
[1729956659581,4.84,168.47,168.42,5.4824]
[1729956660279,4.84,168.47,168.43,2.9719]
[1729956660475,2.90481848,168.58,168.42,2.5103]
[1729956660787,4.84,168.57,168.42,2.5103]
[1729956661081,4.84,168.57,168.46,2.9713]
[1729956661082,7.83164962,168.57,168.46,2.9713]
[1729956661480,57.7,168.59,168.5,2.9706]
[1729956661689,4.84,168.58,168.5,2.9706]
[1729956661981,57.7,168.59,168.45,4.84]
[1729956662181,4.84,168.58,168.49,2.9708]
[1729956662383,4.84,168.58,168.46,1.2103]
[1729956662587,2.9696,168.57,168.5,2.9706]
[1729956662775,4.84,168.56,168.5,2.9706]
[1729956663983,4.84,168.56,168.46,1.2103]
[1729956664183,2.9696,168.57,168.51,2.9705]
[1729956664378,4.84,168.56,168.51,2.9705]
[1729956664685,2.9688,168.61,168.55,2.9697]
[1729956664981,4.84,168.65,168.53,4.84]
[1729956665283,2.9686,168.63,168.57,2.9694]
[1729956665578,7.86314729,168.65,168.53,4.84]
[1729956665883,4.84,168.65,168.5,2.4601]
[1729956666087,2.9694,168.58,168.53,2.9702]
[1729956668586,4.84,168.6,168.5,7.3001]
[1729956668783,4.84,168.6,168.5,2.4601]
[1729956668994,4.84,168.6,168.48,4.84]
[1729956669382,4.84,168.6,168.49,2.9709]
[1729956669681,4.84,168.6,168.47,1.2867]
[1729956670086,4.84,168.6,168.49,2.9709]
[1729956670393,4.84,168.6,168.47,1.2867]
[1729956671093,4.84,168.6,168.48,2.971]
[1729956671385,4.84,168.6,168.46,5.49]
[1729956671587,22.65,168.6,168.46,2.5186]
[1729956671799,22.65,168.6,168.44,4.84]
[1729956672091,2.971,168.49,168.44,2.9717]
[1729956672277,4.84,168.51,168.41,8.6466]
[1729956672984,2.9708,168.5,168.44,2.9718]
[1729956673383,2.9709,168.49,168.44,2.9718]
[1729956673583,4.84,168.51,168.43,2.9719]
[1729956673992,2.9711,168.48,168.43,2.9719]
[1729956674391,4.84,168.51,168.45,2.9716]
[1729956674581,2.9709,168.5,168.45,2.9716]
[1729956675291,2.9703,168.53,168.48,2.971]
[1729956675587,4.84,168.53,168.41,8.6466]
[1729956675792,4.84,168.55,168.42,4.84]
[1729956676182,7.81,168.55,168.5,2.9706]
[1729956676390,4.84,168.55,168.5,2.9706]
[1729956677295,2.97,168.54,168.5,2.9706]
[1729956678093,7.8098,168.55,168.5,2.9706]
[1729956678293,4.84,168.55,168.46,4.84]
[1729956678488,2.9707,168.51,168.46,7.8114]
[1729956678687,2.9707,168.51,168.46,2.9714]
[1729956679197,2.9707,168.51,168.43,4.84]
[1729956679393,2.9707,168.51,168.47,2.9712]
[1729956680294,4.84,168.55,168.43,4.84]
[1729956680490,7.86803111,168.55,168.41,3.8066]
[1729956680691,2.9706,168.51,168.43,2.9718]
[1729956680892,7.86803111,168.55,168.41,3.8066]
[1729956680893,4.84,168.5,168.41,3.8066]
[1729956681196,17.81,168.58,168.41,3.8066]
[1729956681197,4.84,168.49,168.41,3.8066]
[1729956681386,2.9714,168.47,168.42,2.972]
[1729956681591,4.84,168.49,168.41,2.5379]
[1729956681790,2.972,168.44,168.41,2.5379]
[1729956681993,2.972,168.44,168.39,2.9726]
[1729956682400,2.972,168.43,168.38,2.9728]
[1729956682895,2.9721,168.43,168.36,3.6453]
[1729956683097,2.9721,168.43,168.38,2.9727]
[1729956683299,2.9721,168.43,168.36,3.6453]
[1729956683497,2.9721,168.43,168.38,2.9728]
[1729956683699,2.9721,168.43,168.36,3.6453]
[1729956684292,4.84,168.45,168.36,3.6453]
[1729956684702,4.84,168.45,168.41,2.9722]
[1729956684897,7.8117,168.45,168.41,2.9722]
[1729956686199,4.84,168.45,168.36,3.6453]
[1729956686401,4.84,168.45,168.39,2.9725]
[1729956686798,4.84,168.45,168.37,2.973]
[1729956687198,2.9725,168.41,168.37,2.973]
[1729956687504,4.84,168.45,168.38,2.9728]
[1729956688208,4.84,168.45,168.36,2.4481]
[1729956688402,4.84,168.45,168.33,4.84]
[1729956688910,2.9728,168.39,168.34,2.9734]
[1729956689416,2.9728,168.39,168.35,2.9733]
[1729956691300,4.84,168.41,168.29,1.2297]
[1729956691506,4.84,168.41,168.3,4.84]
[1729956691701,2.9738,168.33,168.3,2.9741]
[1729956691908,4.84,168.36,168.28,2.5972]
[1729956693009,2.9736,168.34,168.3,2.9741]
[1729956693705,7.8133,168.36,168.32,2.9738]
[1729956694007,4.84,168.36,168.32,2.9738]
[1729956694409,2.9735,168.35,168.31,2.974]
[1729956694611,4.84,168.36,168.28,2.5972]
[1729956695109,2.9731,168.37,168.33,2.9736]
[1729956695500,7.8127,168.39,168.35,2.9732]
[1729956695697,4.84,168.39,168.28,2.5972]
[1729956696102,2.9733,168.36,168.33,2.9737]
[1729956696502,4.84,168.39,168.28,2.5972]
[1729956696709,4.84,168.39,168.28,7.4372]
[1729956697410,4.84,168.39,168.28,2.5972]
[1729956698207,2.9738,168.33,168.29,2.9744]
[1729956698404,4.84,168.34,168.23,1.2638]
[1729956698708,4.84,168.33,168.23,6.1038]
[1729956698909,4.84,168.32,168.23,1.2638]
[1729956699505,2.9743,168.3,168.26,2.9748]
[1729956700116,4.84,168.32,168.26,2.9748]
[1729956701218,2.9744,168.3,168.26,2.9748]
[1729956701618,2.9744,168.3,168.27,2.9748]
[1729956703215,2.9741,168.31,168.27,2.9748]
[1729956703917,4.84,168.33,168.23,1.2638]
[1729956704112,4.84,168.34,168.23,1.2638]
[1729956704622,2.9737,168.33,168.3,2.9742]
[1729956705014,4.84,168.34,168.3,2.9742]
[1729956705214,7.8137,168.34,168.3,2.9742]
[1729956705415,4.84,168.35,168.24,4.84]
[1729956705616,4.84,168.36,168.24,4.84]
[1729956705814,4.84,168.37,168.36,2.9732]
[1729956706026,4.84,168.37,168.28,4.84]
[1729956706321,4.84,168.37,168.29,1.3086]
[1729956706518,4.84,168.37,168.34,2.9735]
[1729956706817,2.973,168.38,168.34,2.9735]
[1729956707217,2.9726,168.4,168.3,1.2994]
[1729956707418,4.84,168.39,168.3,1.2994]
[1729956708421,2.9731,168.37,168.33,2.9736]
[1729956709120,2.9734,168.35,168.32,2.9739]
[1729956709322,4.84,168.39,168.29,6.1486]
[1729956711212,2.9736,168.34,168.3,2.9742]
[1729956711716,4.84,168.39,168.29,1.3086]
[1729956712119,4.84,168.38,168.29,1.3086]
[1729956712514,7.813,168.38,168.33,2.9736]
[1729956712719,4.84,168.38,168.3,4.84]
[1729956712910,4.84,168.38,168.34,2.9734]
[1729956713417,4.84,168.38,168.35,2.9733]
[1729956714813,4.84,168.38,168.32,2.9738]
[1729956715017,4.84,168.37,168.32,2.9738]
[1729956715523,2.9733,168.36,168.32,2.9738]
[1729956717427,2.9735,168.35,168.31,2.974]
[1729956717624,4.84,168.37,168.29,1.3086]
[1729956718220,2.9738,168.33,168.29,4.2829]
[1729956718825,2.9738,168.33,168.29,1.3086]
[1729956719128,2.9738,168.33,168.3,2.9742]
[1729956720216,2.9734,168.35,168.31,2.9739]
[1729956720420,4.84,168.37,168.29,1.3086]
[1729956721232,2.9737,168.34,168.3,2.9742]
[1729956721418,4.84,168.37,168.3,2.9742]
[1729956721624,4.84,168.37,168.29,1.3086]
[1729956721828,4.84,168.37,168.29,4.283]
[1729956722422,2.9742,168.31,168.27,2.9747]
[1729956722923,2.9744,168.3,168.25,2.975]
[1729956723121,4.84,168.33,168.21,1.3241]
[1729956723323,4.84,168.33,168.21,6.1641]
[1729956723518,2.9751,168.26,168.22,2.9756]
[1729956723826,4.84,168.28,168.21,1.3241]
[1729956724026,2.9753,168.24,168.21,1.3241]
[1729956724428,2.9753,168.24,168.2,1.2878]
[1729956725130,2.9758,168.22,168.14,2.546]
[1729956725333,4.84,168.23,168.14,7.386]
[1729956726033,7.8156,168.23,168.19,2.9762]
[1729956726639,4.84,168.23,168.21,2.9758]
[1729956726937,2.9752,168.25,168.21,2.9758]
[1729956727125,17.81,168.35,168.23,2.9754]
[1729956727333,22.65,168.34,168.23,2.9754]
[1729956727725,177.15922909,168.37,168.19,4.84]
[1729956727935,4.84,168.36,168.19,4.84]
[1729956728129,4.84,168.35,168.2,1.2572]
[1729956728322,2.9739,168.33,168.28,2.9744]
[1729956728522,2.9739,168.33,168.23,4.84]
[1729956728935,2.9739,168.33,168.28,2.9744]
[1729956732537,4.84,168.35,168.28,2.9744]
[1729956732732,2.974,168.32,168.28,2.9744]
[1729956732939,4.84,168.35,168.23,4.84]
[1729956733133,2.9742,168.31,168.26,2.9748]
[1729956734242,4.84,168.35,168.23,4.84]
[1729956734432,4.84,168.35,168.22,6.1092]
[1729956734638,4.84,168.35,168.22,1.2692]
[1729956734929,2.9751,168.26,168.22,2.9756]
[1729956735134,2.9751,168.26,168.21,1.2997]
[1729956735331,4.84,168.29,168.21,1.2997]
[1729956736939,7.7930754,168.29,168.15,4.84]
[1729956737239,2.9754,168.24,168.19,2.9761]
[1729956737542,4.84,168.25,168.15,2.5127]
[1729956737835,4.84,168.24,168.15,2.5127]
[1729956738039,4.84,168.23,168.15,2.5127]
[1729956738343,2.9756,168.23,168.17,2.9764]
[1729956738543,2.9756,168.23,168.15,2.5127]
[1729956738933,4.84,168.24,168.15,2.5127]
[1729956739130,2.9757,168.22,168.18,2.9762]
[1729956739340,4.84,168.24,168.15,2.5127]
[1729956739542,2.9758,168.22,168.16,2.9766]
[1729956739746,4.84,168.24,168.16,2.9766]
[1729956740241,2.976,168.21,168.16,2.9766]
[1729956740547,4.84,168.24,168.15,5.4895]
[1729956740743,2.9762,168.2,168.15,5.4895]
[1729956740943,4.84,168.24,168.15,5.4895]
[1729956741148,4.84,168.24,168.15,2.5127]
[1729956741349,4.84,168.24,168.15,1.2927]
[1729956741644,4.84,168.24,168.14,2.977]
[1729956742237,2.9764,168.18,168.14,2.977]
[1729956742438,2.9764,168.18,168.12,302.74111286]
[1729956742439,4.84,168.2,168.12,302.74111286]
[1729956742643,4.84,168.2,168.13,2.9772]
[1729956742944,4.84,168.2,168.12,302.74111286]
[1729956743149,4.84,168.2,168.16,2.9766]
[1729956743641,2.9759,168.21,168.17,2.9765]
[1729956743850,4.84,168.24,168.12,302.74111286]
[1729956744038,8.9011139,168.39,168.12,305.78198462]
[1729956744234,4.84,168.36,168.23,2.9753]
[1729956744536,4.84,168.36,168.19,4.84]
[1729956744844,4.84,168.36,168.18,4.84]
[1729956745035,2.9753,168.25,168.2,2.9759]
[1729956745743,2.9753,168.25,168.21,2.9758]
[1729956746537,7.8149,168.27,168.23,2.9754]
[1729956748644,4.84,168.27,168.2,1.2364]
[1729956748851,2.9755,168.23,168.19,5.4312]
[1729956749240,2.9754,168.24,168.19,5.4312]
[1729956749749,2.9754,168.24,168.19,2.4551]
[1729956749944,2.9754,168.24,168.2,2.976]
[1729956750252,2.9751,168.26,168.19,2.4551]
[1729956750639,2.9756,168.23,168.19,2.4551]
[1729956751349,2.9757,168.22,168.19,5.4313]
[1729956753447,2.9754,168.24,168.2,2.9759]
[1729956753944,2.9754,168.24,168.19,2.4551]
[1729956754153,2.9753,168.25,168.21,2.9757]
[1729956754345,4.84,168.27,168.19,2.4551]
[1729956754653,4.84,168.27,168.22,2.9756]
[1729956754654,7.8148,168.27,168.22,2.9756]
[1729956754950,7.8148,168.27,168.2,1.2485]
[1729956755145,7.8148,168.27,168.23,2.9753]
[1729956755347,7.8148,168.27,168.2,1.2485]
[1729956755348,4.84,168.27,168.2,1.2485]
[1729956755550,2.9754,168.24,168.2,1.2485]
[1729956755749,4.84,168.27,168.2,1.2485]
[1729956756453,2.975,168.26,168.22,2.9756]
[1729956757948,4.84,168.27,168.26,2.975]
[1729956758156,4.84,168.29,168.2,1.2485]
[1729956758650,2.9748,168.27,168.22,2.9755]
[1729956758951,177.15922909,168.37,168.22,4.84]
[1729956759158,177.15922909,168.37,168.26,2.9749]
[1729956759159,2.9741,168.32,168.26,2.9749]
[1729956759451,4.84,168.36,168.22,4.84]
[1729956759651,177.15922909,168.37,168.22,4.84]
[1729956759853,2.9741,168.31,168.28,2.9745]
[1729956760444,2.9744,168.3,168.26,2.9748]
[1729956760646,4.84,168.35,168.26,2.9748]
[1729956761056,4.84,168.35,168.22,4.84]
[1729956761752,177.15922909,168.37,168.22,4.84]
[1729956761955,4.84,168.37,168.22,4.84]
[1729956762159,2.9733,168.36,168.32,2.9738]
[1729956762463,4.84,168.37,168.29,4.84]
[1729956762759,7.8132,168.37,168.33,2.9737]
[1729956763462,2.9732,168.36,168.33,2.9737]
[1729956763658,4.84,168.37,168.33,2.9737]
[1729956764057,7.813,168.37,168.33,2.9737]
[1729956766071,7.8126,168.4,168.36,2.9732]
[1729956766273,7.8126,168.4,168.3,3.7987]
[1729956766274,2.9726,168.4,168.3,3.7987]
[1729956766676,2.9726,168.4,168.36,2.9731]
[1729956767376,4.84,168.44,168.33,4.84]
[1729956767965,2.9723,168.41,168.38,2.9728]
[1729956768472,4.84,168.44,168.33,4.84]
[1729956768682,4.84,168.45,168.33,4.84]
[1729956769066,2.9713,168.47,168.42,2.972]
[1729956769375,7.8113,168.47,168.37,4.84]
[1729956769573,7.8113,168.47,168.38,3.8432]
[1729956769765,4.84,168.47,168.38,3.8432]
[1729956770173,4.84,168.5,168.38,3.8432]
[1729956773683,7.80310482,168.49,168.4,2.9725]
[1729956773978,7.80310482,168.49,168.38,3.8432]
[1729956773979,4.84,168.49,168.38,3.8432]
[1729956774592,2.9713,168.47,168.43,2.9718]
[1729956775176,57.8,168.56,168.4,4.84]
[1729956775590,4.84,168.55,168.4,4.84]
[1729956776778,2.9714,168.47,168.43,2.9718]
[1729956777380,2.9715,168.46,168.42,2.9721]
[1729956778491,2.9716,168.45,168.41,2.9723]
[1729956778785,2.9716,168.45,168.4,4.84]
[1729956779179,2.9713,168.47,168.43,2.9718]
[1729956779382,4.84,168.5,168.43,2.9718]
[1729956779583,4.84,168.5,168.4,4.84]
[1729956780094,2.9712,168.48,168.44,2.9717]
[1729956780288,60.74026667,168.56,168.4,4.84]
[1729956780478,5.9378,168.61,168.5,2.9707]
[1729956780679,60.73737625,168.66,168.48,4.84]
[1729956780881,4.84,168.64,168.49,3.8247]
[1729956781087,60.73737625,168.66,168.49,3.8247]
[1729956781495,4.84,168.64,168.49,3.8247]
[1729956781696,4.84,168.64,168.58,2.9692]
[1729956782992,66.01639991,168.75,168.58,4.84]
[1729956783196,4.84,168.74,168.61,2.9687]
[1729956783388,4.84,168.74,168.58,4.84]
[1729956783389,4.84,168.74,168.59,3.911]
[1729956783592,2.9677,168.67,168.59,3.911]